bitfinex-derivatives/quotes_SOLF0:USTF0_20250207
["timestamp","ask_amount","ask_price","bid_price","bid_amount"]
[1738935369834,0.03752486,197.33,197.17,36.22002987]
[1738935370135,36.22002987,197.31,197.18,1.01430165]
[1738935370935,5.0679,197.27,197.18,6.08450165]
[1738935371134,0.03871003,197.26,197.23,0.03274976]
[1738935371537,5.0699,197.2,197.18,1.01430165]
[1738935371936,36.22002987,197.27,197.18,1.01430165]
[1738935372134,36.22002987,197.31,197.14,36.22002987]
[1738935372636,36.22002987,197.31,197.15,3.0975]
[1738935372938,36.22002987,197.23,197.21,0.03371301]
[1738935373129,36.22002987,197.23,197.07,5.0728]
[1738935373330,3.2954,197.22,197.06,36.22002987]
[1738935373529,36.22002987,197.27,197.1,36.22002987]
[1738935373839,36.22002987,197.31,197.14,36.22002987]
[1738935374339,0.03331313,197.24,197.21,0.03279427]
[1738935374739,5.0674,197.29,197.21,5.0694]
[1738935375035,8.573e-05,197.24,197.21,0.03314405]
[1738935375333,8.573e-05,197.24,197.23,5.0689]
[1738935375540,8.30907692,197.49,197.22,36.22002987]
[1738935375932,37.23325242,197.39,197.22,36.22002987]
[1738935376132,37.23325242,197.39,197.19,8.2054]
[1738935376133,1.01327388,197.38,197.19,8.2054]
[1738935376336,5.0665,197.33,197.24,5.0684]
[1738935376543,0.03246263,197.32,197.29,0.03487334]
[1738935377041,3.0161,197.38,197.19,8.2054]
[1738935377335,36.22002987,197.28,197.11,39.21232987]
[1738935377738,18.2261,197.38,197.27,3.344e-05]
[1738935377739,36.22002987,197.3,197.27,3.344e-05]
[1738935377941,72.44005974,197.3,197.07,36.22002987]
[1738935378142,36.22002987,197.22,197.08,1.01481631]
[1738935379136,0.03640299,197.17,197.13,0.03650628]
[1738935379943,2.99e-06,197.17,197.13,0.03650628]
[1738935380143,2.99e-06,197.17,197.16,5.0707]
[1738935380949,105.3948,197.4,197.15,36.22002987]
[1738935381142,5.0664,197.33,197.19,36.22002987]
[1738935381440,105.3948,197.4,197.19,36.22002987]
[1738935381641,5.0659,197.35,197.24,36.22002987]
[1738935381841,105.3948,197.4,197.28,5.0676]
[1738935382142,5.0663,197.34,197.2,36.22002987]
[1738935382340,0.03714096,197.31,197.28,0.03810752]
[1738935382642,105.3948,197.4,197.28,0.03810752]
[1738935382945,0.03256909,197.31,197.28,0.03810752]
[1738935383444,5.0669,197.31,197.28,0.03810752]
[1738935383642,0.03372928,197.31,197.28,0.03810752]
[1738935384636,36.22002987,197.43,197.28,0.03810752]
[1738935384843,36.22002987,197.43,197.28,36.25813739]
[1738935385043,3.2284,197.46,197.32,36.22002987]
[1738935385343,3.2284,197.46,197.28,36.22002987]
[1738935385547,36.22002987,197.43,197.25,3.0901]
[1738935385746,36.22002987,197.39,197.25,3.0901]
[1738935386145,5.0663,197.33,197.32,0.03229444]
[1738935386447,0.03828836,197.36,197.32,0.03229444]
[1738935386845,36.25831823,197.36,197.16,36.22002987]
[1738935387039,36.22002987,197.32,197.12,4.7984]
[1738935387242,36.22002987,197.28,197.12,4.7984]
[1738935387842,4.8992,197.31,197.12,4.7984]
[1738935388149,0.03673556,197.22,197.18,0.03579952]
[1738935388548,36.22002987,197.32,197.12,4.7984]
[1738935388749,3.2573,197.35,197.18,36.22002987]
[1738935388945,9.028e-05,197.22,197.21,5.0694]
[1738935389141,36.22002987,197.44,197.21,36.22002987]
[1738935389349,36.22002987,197.44,197.26,36.22002987]
[1738935389956,36.22002987,197.48,197.3,36.22002987]
[1738935390351,0.03287331,197.41,197.35,5.0657]
[1738935390559,0.03287331,197.41,197.37,0.03349428]
[1738935391453,36.22002987,197.54,197.37,0.03349428]
[1738935391652,36.22002987,197.5,197.37,0.03349428]
[1738935391849,36.22002987,197.5,197.3,36.22002987]
[1738935392253,36.22002987,197.46,197.3,36.22002987]
[1738935392554,36.22002987,197.46,197.28,5.0562]
[1738935392758,0.03459474,197.4,197.36,0.03387208]
[1738935395957,0.03459474,197.4,197.38,5.065]
[1738935396157,0.03459474,197.4,197.36,0.03387208]
[1738935396355,5.0653,197.37,197.36,0.03387208]
[1738935396561,0.03459474,197.4,197.36,0.03387208]
[1738935396863,5.09919474,197.4,197.36,0.03387208]
[1738935397263,5.09919474,197.4,197.33,5.0661]
[1738935397264,36.25462461,197.4,197.22,36.22002987]
[1738935397452,3.0526,197.39,197.22,36.22002987]
[1738935397650,36.22002987,197.31,197.14,36.22002987]
[1738935397854,36.22002987,197.28,197.11,36.22002987]
[1738935398058,36.22002987,197.23,197.07,3.1426]
[1738935398257,3.1682,197.27,197.1,36.22002987]
[1738935398258,39.38822987,197.27,197.1,36.22002987]
[1738935398459,5.068,197.27,197.19,5.0698]
[1738935398668,36.22002987,197.35,197.15,36.22002987]
[1738935398859,36.22002987,197.31,197.15,36.22002987]
[1738935399056,36.22002987,197.31,197.11,36.22002987]
[1738935399264,36.22002987,197.31,197.15,36.22002987]
[1738935399663,36.22002987,197.31,197.16,4.8184]
[1738935399864,0.03528885,197.25,197.21,0.03231427]
[1738935400169,140.65948967,197.39,197.23,36.22002987]
[1738935400465,140.65948967,197.39,197.27,36.22002987]
[1738935400466,135.84428967,197.39,197.27,36.22002987]
[1738935400665,135.84428967,197.39,197.24,36.22002987]
[1738935401060,135.84428967,197.39,197.28,36.22002987]
[1738935401263,36.22002987,197.44,197.28,36.22002987]
[1738935401464,0.03485286,197.33,197.3,0.03502864]
[1738935401663,36.22002987,197.48,197.32,36.22002987]
[1738935402069,139.01248967,197.49,197.36,36.22002987]
[1738935402265,135.84428967,197.49,197.36,36.22002987]
[1738935402668,172.06431954,197.49,197.31,3.15]
[1738935402865,0.03611876,197.44,197.41,0.03227577]
[1738935403571,0.03611876,197.44,197.3,36.22002987]
[1738935403969,36.22002987,197.45,197.26,36.22002987]
[1738935404169,36.22002987,197.41,197.21,3.15]
[1738935404564,5.0677,197.28,197.2,5.0695]
[1738935404870,36.25239809,197.33,197.29,0.03200685]
[1738935405071,36.22002987,197.33,197.16,36.22002987]
[1738935405270,5.0678,197.28,197.21,5.0693]
[1738935405564,36.22002987,197.33,197.16,36.22002987]
[1738935405871,3.1197,197.32,197.16,36.22002987]
[1738935406262,0.03640328,197.26,197.22,0.03224761]
[1738935406666,0.03640328,197.26,197.22,36.25227748]
[1738935406869,36.22002987,197.42,197.22,36.25227748]
[1738935407171,3.1197,197.46,197.28,36.22002987]
[1738935407366,3.1197,197.46,197.29,2.9731]
[1738935407572,36.22002987,197.45,197.29,2.9731]
[1738935408066,0.03319239,197.39,197.35,0.0375078]
[1738935408273,36.22002987,197.53,197.36,36.22002987]
[1738935409273,5.0626,197.48,197.39,5.0646]
[1738935409571,0.03434512,197.46,197.43,0.03539901]
[1738935409967,36.22002987,197.53,197.43,0.03539901]
[1738935410176,0.03203282,197.46,197.43,0.03539901]
[1738935410368,5.0622,197.49,197.43,0.03539901]
[1738935410769,0.03364648,197.46,197.43,0.03539901]
[1738935412370,5.09674648,197.46,197.43,0.03539901]
[1738935412564,0.03364648,197.46,197.43,0.03539901]
[1738935413682,0.03364648,197.46,197.45,5.0633]
[1738935414170,36.22002987,197.61,197.49,5.0621]
[1738935414468,6.234,197.64,197.52,36.22002987]
[1738935415271,0.03840198,197.6,197.56,0.03459033]
[1738935415471,0.03840198,197.6,197.56,36.2546202]
[1738935415775,0.03840198,197.6,197.56,0.03459033]
[1738935416369,5.09790198,197.6,197.56,0.03459033]
[1738935416574,0.03840198,197.6,197.56,0.03459033]
[1738935417175,5.0602,197.57,197.56,0.03459033]
[1738935417766,5.0599,197.59,197.56,0.03459033]
[1738935417970,0.03840198,197.6,197.56,0.03459033]
[1738935418375,5.0602,197.57,197.56,0.03459033]
[1738935418576,0.03840198,197.6,197.46,36.22002987]
[1738935418876,36.22002987,197.62,197.46,36.22002987]
[1738935419075,36.22002987,197.66,197.46,36.22002987]
[1738935419672,0.0338941,197.58,197.54,0.0380414]
[1738935420074,36.22002987,197.62,197.46,36.22002987]
[1738935420373,0.03655117,197.58,197.54,0.03255397]
[1738935420576,36.22002987,197.57,197.41,3.1805]
[1738935420775,36.22002987,197.57,197.42,36.22002987]
[1738935420977,36.22002987,197.57,197.49,5.0621]
[1738935420978,5.0604,197.57,197.49,5.0621]
[1738935421270,36.22002987,197.65,197.46,36.22002987]
[1738935421671,0.03629008,197.57,197.54,0.03685434]
[1738935421867,9.008e-05,197.57,197.54,36.25688421]
[1738935422174,2.9741,197.76,197.54,36.22002987]
[1738935422372,2.9741,197.76,197.6,36.22002987]
[1738935422779,2.9741,197.76,197.64,36.22002987]
[1738935423076,0.03243997,197.72,197.68,0.03586414]
[1738935423273,0.03243997,197.72,197.69,5.0571]
[1738935423473,0.03243997,197.72,197.68,0.03586414]
[1738935424074,135.84428967,197.77,197.68,36.25589401]
[1738935424274,135.84428967,197.77,197.73,36.22002987]
[1738935424577,36.22002987,197.81,197.61,3.1609]
[1738935424771,36.22002987,197.81,197.62,4.7213]
[1738935424967,36.22002987,197.9,197.69,36.22002987]
[1738935425173,4.8623,197.93,197.77,36.22002987]
[1738935425475,0.03579626,197.8,197.76,0.03757097]
[1738935425677,36.22002987,197.87,197.69,36.22002987]
[1738935425973,5.0551,197.77,197.76,0.03642618]
[1738935426279,0.03199587,197.8,197.76,0.03642618]
[1738935426976,36.22002987,198.0,197.76,36.25645605]
[1738935427172,51.43002987,198.0,197.81,36.22002987]
[1738935427379,36.22002987,197.93,197.77,4.7213]
[1738935427580,36.22002987,197.89,197.73,36.22002987]
[1738935427781,36.22002987,197.89,197.69,36.22002987]
[1738935427981,36.22002987,197.89,197.73,36.22002987]
[1738935428177,0.03465322,197.81,197.77,0.03702835]
[1738935428578,36.22002987,197.89,197.73,36.22002987]
[1738935428782,0.03760088,197.81,197.77,0.03284914]
[1738935429176,36.22002987,197.81,197.66,36.22002987]
[1738935429374,36.25248196,197.81,197.77,0.03875638]
[1738935429579,5.0556,197.75,197.66,41.27782987]
[1738935429884,36.22002987,197.81,197.64,4.7566]
[1738935430380,15.21,197.87,197.62,39.34352987]
[1738935430587,36.22002987,197.81,197.62,39.34352987]
[1738935430781,0.03288665,197.76,197.73,0.03715107]
[1738935430989,4.845,197.88,197.7,36.22002987]
[1738935431188,0.03454,197.76,197.73,0.03248633]
[1738935431378,0.03454,197.76,197.7,41.27662987]
[1738935431379,4.845,197.88,197.7,36.22002987]
[1738935431581,0.03621312,197.76,197.73,0.0382161]
[1738935431885,36.22002987,197.75,197.62,3.1235]
[1738935432377,36.22002987,197.75,197.58,36.22002987]
[1738935433184,0.03474766,197.68,197.65,0.03394869]
[1738935433582,36.22002987,197.71,197.55,3.0868]
[1738935433778,36.22002987,197.67,197.5,36.22002987]
[1738935434077,9.4472,197.78,197.48,5.0622]
[1738935434078,36.22002987,197.63,197.48,5.0622]
[1738935434282,36.22002987,197.63,197.46,39.30682987]
[1738935434883,36.22002987,197.63,197.53,0.03196421]
[1738935434884,0.03702744,197.56,197.53,0.03196421]
[1738935435392,36.22002987,197.71,197.54,36.22002987]
[1738935435587,36.22002987,197.75,197.58,36.22002987]
[1738935435792,18.2434,197.77,197.58,36.22002987]
[1738935436088,36.22002987,197.75,197.58,36.22002987]
[1738935436285,36.22002987,197.83,197.54,11.6941]
[1738935436489,36.22002987,197.83,197.66,36.22002987]
[1738935436781,36.22002987,197.79,197.67,0.03458375]
[1738935436988,36.22002987,197.71,197.56,36.22002987]
[1738935437180,36.22002987,197.71,197.54,5.4141]
[1738935437386,36.22002987,197.67,197.54,5.4141]
[1738935438083,0.03338878,197.62,197.59,0.03726262]
[1738935439890,0.03338878,197.62,197.6,5.0594]
[1738935440087,0.03338878,197.62,197.59,0.03726262]
[1738935441691,0.03338878,197.62,197.46,3.0868]
[1738935441892,36.22002987,197.59,197.41,5.4053]
[1738935442890,0.03838616,197.52,197.48,0.03854999]
[1738935443294,3.2686,197.66,197.5,36.22002987]
[1738935443492,8.3267,197.66,197.58,5.0599]
[1738935443789,5.1894,197.7,197.54,36.22002987]
[1738935444288,5.1894,197.7,197.51,3.1414]
[1738935444289,3.1515,197.78,197.58,36.22002987]
[1738935444593,0.03197131,197.7,197.66,0.03638812]
[1738935444790,3.1515,197.78,197.62,36.22002987]
[1738935445096,0.03243751,197.7,197.66,0.03591735]
[1738935445290,3.1515,197.78,197.63,3.2166]
[1738935445600,3.1515,197.78,197.64,0.03318378]
[1738935445791,0.03721027,197.72,197.63,3.2166]
[1738935445991,0.03721027,197.72,197.7,5.0568]
[1738935446287,0.03721027,197.72,197.69,0.03398061]
[1738935448493,0.03721027,197.72,197.71,5.0566]
[1738935448797,0.03721027,197.72,197.69,0.03398061]
[1738935449491,0.03721027,197.72,197.69,5.09108061]
[1738935449686,0.03721027,197.72,197.69,0.03398061]
[1738935451294,0.03721027,197.72,197.71,5.0566]
[1738935451494,5.0543,197.81,197.69,0.03398061]
[1738935451800,3.2727,197.82,197.66,8.5811]
[1738935452004,5.055,197.78,197.66,8.5811]
[1738935452298,3.1515,197.84,197.69,36.22002987]
[1738935452493,3.0794,197.89,197.7,2.9797]
[1738935452800,8.324e-05,197.78,197.75,0.03300092]
[1738935452994,5.053,197.86,197.73,36.22002987]
[1738935453200,6.316,197.89,197.73,36.22002987]
[1738935453592,5.0533,197.85,197.79,5.0545]
[1738935453795,6.316,197.89,197.7,2.9797]
[1738935453999,5.0538,197.82,197.8,0.03338448]
[1738935454594,0.03421047,197.84,197.8,0.03338448]
[1738935454991,0.03421047,197.84,197.8,5.08738448]
[1738935455197,0.03421047,197.84,197.8,0.03338448]
[1738935455597,0.03421047,197.84,197.83,5.0535]
[1738935455900,6.5236,197.98,197.8,0.03338448]
[1738935455901,42.74362987,197.98,197.8,0.03338448]
[1738935456099,42.74362987,197.98,197.78,3.1249]
[1738935456301,36.22002987,197.94,197.84,5.0533]
[1738935456498,36.22002987,197.94,197.78,3.1249]
[1738935456694,36.22002987,197.94,197.77,36.22002987]
[1738935456897,0.03322056,197.88,197.84,0.0321262]
[1738935457603,0.03322056,197.88,197.87,5.0525]
[1738935457803,0.03322056,197.88,197.84,0.0321262]
[1738935460008,0.03322056,197.88,197.84,5.0851262]
[1738935460404,0.03322056,197.88,197.84,0.0321262]
[1738935460604,6.5236,197.98,197.84,0.0321262]
[1738935460804,6.5236,197.98,197.81,36.22002987]
[1738935461009,36.22002987,197.96,197.82,3.145]
[1738935461517,6.5236,197.98,197.82,3.145]
[1738935461912,6.5236,197.98,197.88,0.03781004]
[1738935462216,5.0502,197.97,197.91,5.0514]
[1738935462415,36.22002987,198.0,197.85,36.22002987]
[1738935462610,5.049,198.01,197.95,5.0505]
[1738935462813,36.22002987,198.04,197.92,0.03560242]
[1738935463013,36.22002987,198.04,197.85,36.22002987]
[1738935463216,36.22002987,198.04,197.96,0.03514484]
[1738935463916,36.22002987,198.0,197.96,0.03514484]
[1738935464114,5.05,197.97,197.96,0.03514484]
[1738935464317,36.22002987,198.0,197.84,3.0904]
[1738935464519,36.22002987,198.0,197.95,0.03808431]
[1738935464817,36.22002987,198.0,197.96,0.03835564]
[1738935465208,36.22002987,198.0,197.84,3.0904]
[1738935465411,36.22002987,198.0,197.96,0.03608564]
[1738935465617,36.22002987,198.04,197.84,3.0904]
[1738935465818,5.0503,197.96,197.9,5.09024958]
[1738935466018,36.22002987,198.0,197.9,0.03874958]
[1738935466220,36.22002987,198.0,197.84,3.0904]
[1738935466513,5.0502,197.97,197.91,0.03437392]
[1738935466913,36.22002987,198.0,197.91,0.03437392]
[1738935467218,5.0501,197.97,197.91,5.08577392]
[1738935467514,36.22002987,198.0,197.91,0.03437392]
[1738935467815,5.0511,197.93,197.91,0.03437392]
[1738935468014,36.22002987,197.96,197.91,0.03437392]
[1738935468215,36.22002987,197.96,197.9,0.03363726]
[1738935468617,5.0515,197.91,197.9,0.03363726]
[1738935469218,3.2308,197.95,197.9,0.03363726]
[1738935470621,3.0926,197.99,197.9,0.03363726]
[1738935470917,5.0492,198.0,197.9,0.03363726]
[1738935471315,5.0492,198.0,197.93,5.051]
[1738935471512,5.0492,198.0,197.85,36.22002987]
[1738935471712,5.0492,198.0,197.89,5.0519]
[1738935471917,5.0492,198.0,197.95,0.03316869]
[1738935472112,5.0496,197.99,197.95,0.03316869]
[1738935472308,5.0496,197.99,197.98,0.03767765]
[1738935472510,36.22002987,198.0,197.83,5.5817]
[1738935473111,36.22002987,198.0,197.87,5.0523]
[1738935473317,5.0508,197.94,197.87,5.0523]
[1738935473513,5.0508,197.94,197.83,5.5817]
[1738935473718,0.0322481,197.92,197.89,0.0363903]
[1738935474819,0.0322481,197.92,197.9,5.0515]
[1738935475014,0.0322481,197.92,197.89,0.0363903]
[1738935477117,5.0517,197.9,197.89,0.0363903]
[1738935477617,0.0322481,197.92,197.89,0.0363903]
[1738935479414,42.49662987,198.04,197.89,0.0363903]
[1738935479415,6.2766,198.04,197.89,0.0363903]
[1738935479611,5.5511,198.09,197.92,36.22002987]
[1738935479818,5.0466,198.11,197.9,44.57102987]
[1738935480019,135.84428967,198.15,197.9,44.57102987]
[1738935480020,135.84428967,198.15,198.0,36.22002987]
[1738935480817,135.84428967,198.15,198.06,0.03509885]
[1738935481016,5.0459,198.14,198.06,0.03509885]
[1738935481221,36.22002987,198.13,197.9,44.57102987]
[1738935481519,36.22002987,198.05,197.9,45.58164128]
[1738935481722,36.22002987,198.05,197.94,5.0505]
[1738935481923,36.22002987,198.01,197.9,1.01061141]
[1738935482118,36.22002987,198.01,197.82,5.2877]
[1738935482717,0.03723305,197.93,197.9,0.03469287]
[1738935483117,36.22002987,198.05,197.91,5.0515]
[1738935483317,0.03853348,197.93,197.91,5.0515]
[1738935483521,36.22002987,198.01,197.87,5.0524]
[1738935483715,36.22002987,197.97,197.96,4.89e-05]
[1738935483925,0.03377893,197.96,197.83,27.89949585]
[1738935484119,36.22002987,197.93,197.83,27.89949585]
[1738935484522,41.27122987,197.93,197.83,32.95289585]
[1738935484723,36.22002987,197.93,197.83,27.89949585]
[1738935484923,0.03653713,197.9,197.86,0.0364852]
[1738935486628,0.03653713,197.9,197.73,36.22002987]
[1738935486823,5.0516,197.91,197.81,5.0539]
[1738935487029,36.22002987,197.93,197.77,36.22002987]
[1738935487231,36.22002987,197.93,197.71,8.7638]
[1738935487428,5.0525,197.87,197.78,5.0546]
[1738935487630,0.03843101,197.84,197.81,0.03581916]
[1738935488630,0.03843101,197.84,197.71,5.5525]
[1738935488932,2.9996,197.84,197.71,5.5525]
[1738935489633,36.22002987,197.89,197.71,5.5525]
[1738935489830,0.03749646,197.79,197.76,0.03489306]
[1738935490133,36.22002987,197.78,197.67,2.9974]
[1738935490327,0.03293976,197.79,197.76,0.03300054]
[1738935490633,87.65005974,197.8,197.65,27.89949585]
[1738935490835,36.22002987,197.72,197.65,27.89949585]
[1738935491230,41.27542987,197.76,197.64,54.0168703]
[1738935491436,41.27542987,197.76,197.59,27.89949585]
[1738935491636,41.27542987,197.76,197.67,5.0575]
[1738935491939,0.03459682,197.72,197.68,0.03294567]
[1738935492726,0.03459682,197.72,197.7,5.0567]
[1738935493127,0.03459682,197.72,197.68,0.03294567]
[1738935493328,0.03459682,197.72,197.71,5.0566]
[1738935493529,36.22002987,197.84,197.68,0.03294567]
[1738935493934,5.0541,197.81,197.67,3.0191]
[1738935494232,8.3146,197.87,197.7,36.22002987]
[1738935494936,0.03726537,197.8,197.79,5.0546]
[1738935495642,0.03726537,197.8,197.77,5.0876778]
[1738935495836,0.03726537,197.8,197.77,0.0328778]
[1738935496135,0.03726537,197.8,197.66,5.0579]
[1738935496330,0.03726537,197.8,197.64,36.22002987]
[1738935496532,5.0559,197.74,197.61,3.2942]
[1738935496731,36.22002987,197.77,197.61,3.2942]
[1738935496932,5.0555,197.76,197.64,36.22002987]
[1738935497133,9.56e-05,197.71,197.68,36.22002987]
[1738935497437,5.0538,197.82,197.75,5.0553]
[1738935497641,5.33,197.86,197.68,36.22002987]
[1738935497835,5.33,197.86,197.72,36.22002987]
[1738935498034,5.33,197.86,197.73,3.2942]
[1738935498231,5.0533,197.84,197.73,3.2942]
[1738935498435,0.03259402,197.81,197.78,0.03685933]
[1738935498735,36.22002987,197.93,197.78,0.03685933]
[1738935498936,135.84428967,197.95,197.8,36.22002987]
[1738935499238,135.84428967,197.95,197.84,36.22002987]
[1738935499440,135.84428967,197.95,197.88,36.22002987]
[1738935499638,135.84428967,197.95,197.9,5.0517]
[1738935499838,0.0373527,197.93,197.9,0.03410881]
[1738935501335,36.25738257,197.93,197.8,3.043]
[1738935501534,36.22002987,197.97,197.8,39.26302987]
[1738935502636,0.03185455,197.9,197.87,0.03455156]
[1738935502837,5.051,197.93,197.87,0.03455156]
[1738935503038,5.08590118,197.9,197.87,0.03455156]
[1738935503233,0.03410118,197.9,197.71,13.9544]
[1738935503545,36.22002987,197.93,197.71,13.9544]
[1738935503546,36.22002987,197.93,197.72,3.043]
[1738935503835,5.0515,197.91,197.76,36.22002987]
[1738935504037,36.22002987,197.93,197.76,36.22002987]
[1738935504239,36.22002987,197.93,197.72,3.043]
[1738935504437,36.22002987,197.85,197.83,0.03360647]
[1738935504641,36.22002987,197.85,197.72,3.043]
[1738935504840,36.22002987,197.85,197.75,5.0556]
[1738935505138,36.22002987,197.85,197.66,36.22002987]
[1738935505343,5.5978,197.84,197.66,36.22002987]
[1738935505541,36.22002987,197.81,197.64,8.6569]
[1738935505737,36.25740742,197.77,197.73,0.03605669]
[1738935506044,0.03737755,197.77,197.73,0.03605669]
[1738935507742,0.03737755,197.77,197.73,5.09195669]
[1738935507945,0.03737755,197.77,197.73,0.03605669]
[1738935508138,5.0557,197.75,197.73,0.03605669]
[1738935508334,36.25740742,197.77,197.73,0.03605669]
[1738935509148,0.03737755,197.77,197.73,0.03605669]
[1738935509543,0.03737755,197.77,197.75,5.0555]
[1738935510548,0.03737755,197.77,197.73,0.03605669]
[1738935510947,36.22002987,197.74,197.56,36.22002987]
[1738935511142,5.0574,197.68,197.56,36.22002987]
[1738935511342,36.22002987,197.74,197.56,36.22002987]
[1738935511849,36.22002987,197.74,197.63,5.0586]
[1738935512040,0.03861,197.67,197.63,5.09677006]
[1738935512540,1e-05,197.67,197.63,0.03817006]
[1738935512743,1e-05,197.67,197.64,36.22002987]
[1738935513250,1e-05,197.67,197.66,5.0579]
[1738935513841,5.5299,197.88,197.78,5.0548]
[1738935514043,3.16,197.87,197.74,36.22002987]
[1738935514254,36.22002987,197.93,197.75,2.999]
[1738935514640,36.22002987,197.89,197.75,2.999]
[1738935515049,0.03891494,197.84,197.8,0.03451172]
[1738935515546,0.03891494,197.84,197.83,5.0535]
[1738935516151,3.1918,197.95,197.82,36.22002987]
[1738935516449,135.84428967,197.98,197.9,36.22002987]
[1738935516851,135.84428967,197.98,197.96,5.0501]
[1738935517151,135.84428967,197.98,197.86,36.22002987]
[1738935517347,135.84428967,197.98,197.95,0.03329962]
[1738935517548,135.84428967,197.98,197.87,3.0098]
[1738935517549,36.22002987,198.03,197.87,3.0098]
[1738935517848,0.03763801,197.98,197.95,0.03785004]
[1738935518546,3.801e-05,197.98,197.96,5.0502]
[1738935519751,3.801e-05,197.98,197.95,0.03785004]
[1738935520951,3.801e-05,197.98,197.96,5.0501]
[1738935521150,3.801e-05,197.98,197.95,0.03785004]
[1738935522254,3.801e-05,197.98,197.97,5.05]
[1738935522649,3.801e-05,197.98,197.95,0.03785004]
[1738935522848,3.801e-05,197.98,197.97,5.05]
[1738935523053,3.801e-05,197.98,197.95,0.03785004]
[1738935524354,3.801e-05,197.98,197.79,5.58]
[1738935524551,36.22002987,197.95,197.8,3.1356]
[1738935524755,36.22002987,198.0,197.8,3.1356]
[1738935524756,36.22002987,198.0,197.82,36.22002987]
[1738935524957,3.205,198.02,197.86,36.22002987]
[1738935525152,3.205,198.02,197.9,36.22002987]
[1738935525357,2.379e-05,197.96,197.92,0.03216377]
[1738935525557,2.379e-05,197.96,197.95,5.0505]
[1738935525754,3.205,198.09,197.94,36.22002987]
[1738935525954,39.41162987,198.14,197.98,36.22002987]
[1738935526153,3.1916,198.14,198.08,5.047]
[1738935526357,3.1916,198.14,197.98,36.22002987]
[1738935526560,39.41162987,198.14,197.98,36.22002987]
[1738935526856,39.41162987,198.14,198.04,0.03877553]
[1738935526857,0.03838475,198.08,198.04,0.03877553]
[1738935528848,0.03838475,198.08,197.93,5.4502]
[1738935529252,36.22002987,198.1,197.93,5.4502]
[1738935529453,2.9752,198.09,197.93,5.4502]
[1738935529855,5.049,198.01,197.94,5.0505]
[1738935530051,0.03808269,198.03,197.99,0.03807829]
[1738935530256,36.22002987,198.01,197.83,5.3585]
[1738935530450,5.0506,197.95,197.88,5.0521]
[1738935530657,36.22002987,197.97,197.83,5.3585]
[1738935530852,5.051,197.94,197.85,5.0528]
[1738935531058,2.9752,197.96,197.83,5.3585]
[1738935531458,0.03617999,197.91,197.88,0.03527045]
[1738935532358,5.0517,197.9,197.88,0.03527045]
[1738935532560,0.03617999,197.91,197.88,0.03527045]
[1738935533458,5.0517,197.9,197.88,0.03527045]
[1738935534359,5.052,197.89,197.88,0.03527045]
[1738935534559,0.03617999,197.91,197.78,3.0172]
[1738935534761,5.6349,197.92,197.78,3.0172]
[1738935535267,2.9752,197.96,197.82,36.22002987]
[1738935535461,2.9752,197.96,197.92,5.0511]
[1738935535857,3.01296808,197.96,197.92,5.0511]
[1738935536058,0.03776808,197.96,197.94,5.0506]
[1738935536263,0.03776808,197.96,197.92,0.0387938]
[1738935536664,0.03776808,197.96,197.95,5.0505]
[1738935536967,6.808e-05,197.96,197.95,5.0505]
[1738935537156,36.22002987,198.14,197.94,36.22002987]
[1738935537358,36.22002987,198.14,197.98,36.22002987]
[1738935538363,0.03272027,198.08,198.04,0.0334413]
[1738935538767,0.03272027,198.08,198.06,5.0476]
[1738935539070,0.03272027,198.08,198.04,0.0334413]
[1738935540968,36.22002987,198.24,198.06,36.22002987]
[1738935541162,11.9767,198.28,198.1,36.22002987]
[1738935541366,10.85049399,198.33,198.21,5.0438]
[1738935541570,10.85049399,198.33,198.19,36.22002987]
[1738935541963,5.0412,198.32,198.22,5.0434]
[1738935542165,0.03375753,198.28,198.24,0.03580913]
[1738935542561,232.84791669,198.34,198.15,36.22002987]
[1738935542764,0.03421575,198.28,198.24,0.0380444]
[1738935543172,0.03421575,198.28,198.25,5.0428]
[1738935543363,0.03421575,198.28,198.24,0.0380444]
[1738935544471,0.03421575,198.28,198.26,5.0425]
[1738935544671,0.03421575,198.28,198.24,0.0380444]
[1738935545573,0.03421575,198.28,198.26,5.0425]
[1738935545772,3.2732,198.38,198.24,0.0380444]
[1738935546074,3.2732,198.38,198.2,41.49792987]
[1738935546075,36.22002987,198.44,198.27,36.22002987]
[1738935546480,5.0403,198.35,198.28,5.0419]
[1738935546666,36.22002987,198.44,198.23,36.22002987]
[1738935547066,0.03606465,198.33,198.31,5.0413]
[1738935547265,0.03606465,198.33,198.3,0.03543228]
[1738935547475,36.22002987,198.4,198.23,36.22002987]
[1738935547673,5.07735412,198.33,198.3,0.03491127]
[1738935547975,36.22002987,198.36,198.3,0.03491127]
[1738935548178,5.0413,198.32,198.3,0.03491127]
[1738935548373,0.03229333,198.33,198.21,3.0738]